[Event "*** Titled Tuesday Blitz"]
[Site "Chess.com"]
[Date "2020.03.03"]
[Round "1"]
[White "josmito10"]
[Black "SCIM"]
[Result "1-0"]
[WhiteElo "2848"]
[BlackElo "2471"]
[TimeControl "180+1"]
[EndTime "13:08:53 PST"]
[Termination "josmito10 won by resignation"]

1. d4 {[%clk 0:02:59.5]} 1... Nf6 {[%clk 0:02:59]} 2. c4 {[%clk 0:02:59.6]} 2...
g6 {[%clk 0:02:59.5]} 3. Nc3 {[%clk 0:02:59.7]} 3... d5 {[%clk 0:03:00]} 4. Bf4
{[%clk 0:02:59.5]} 4... Bg7 {[%clk 0:02:58.7]} 5. e3 {[%clk 0:02:59.5]} 5... O-O
{[%clk 0:02:57.8]} 6. Nf3 {[%clk 0:02:59.7]} 6... c5 {[%clk 0:02:33.7]} 7. dxc5
{[%clk 0:02:58.3]} 7... Ne4 {[%clk 0:02:29.7]} 8. Rc1 {[%clk 0:02:53.7]} 8...
Nxc3 {[%clk 0:02:21]} 9. bxc3 {[%clk 0:02:53.1]} 9... Qa5 {[%clk 0:02:20.2]} 10.
Be5 {[%clk 0:02:44.4]} 10... Bxe5 {[%clk 0:02:09.5]} 11. Nxe5 {[%clk 0:02:45.3]}
11... dxc4 {[%clk 0:02:08.5]} 12. Nxc4 {[%clk 0:02:26.6]} 12... Qxc5 {[%clk
0:02:07.5]} 13. Qd4 {[%clk 0:02:22]} 13... Qc7 {[%clk 0:01:49.8]} 14. Be2 {[%clk
0:02:19]} 14... Nc6 {[%clk 0:01:47.6]} 15. Qh4 {[%clk 0:02:19.2]} 15... Be6
{[%clk 0:01:38.9]} 16. O-O {[%clk 0:02:13.2]} 16... Rfd8 {[%clk 0:01:36.3]} 17.
Bf3 {[%clk 0:01:56.5]} 17... Rac8 {[%clk 0:01:28.6]} 18. Rfd1 {[%clk 0:01:34.6]}
18... Rxd1+ {[%clk 0:01:07.7]} 19. Rxd1 {[%clk 0:01:35.5]} 19... Bxc4 {[%clk
0:01:01.2]} 20. Qxc4 {[%clk 0:01:34.2]} 20... Ne5 {[%clk 0:01:01.7]} 21. Qxc7
{[%clk 0:01:26.1]} 21... Nxf3+ {[%clk 0:00:59.5]} 22. gxf3 {[%clk 0:01:25.6]}
22... Rxc7 {[%clk 0:00:59.9]} 23. Rb1 {[%clk 0:01:17.2]} 23... b6 {[%clk
0:00:58.3]} 24. Rb3 {[%clk 0:01:16.8]} 24... f5 {[%clk 0:00:47.1]} 25. f4 {[%clk
0:01:16]} 25... Kf7 {[%clk 0:00:40.2]} 26. Kf1 {[%clk 0:01:16.1]} 26... Kf6
{[%clk 0:00:37.7]} 27. Ke2 {[%clk 0:01:16.4]} 27... e5 {[%clk 0:00:26.6]} 28.
fxe5+ {[%clk 0:01:17.3]} 28... Kxe5 {[%clk 0:00:26]} 29. f4+ {[%clk 0:01:17.4]}
29... Kf6 {[%clk 0:00:21]} 30. Ra3 {[%clk 0:01:16.2]} 30... g5 {[%clk
0:00:17.6]} 31. fxg5+ {[%clk 0:01:14.4]} 31... Kxg5 {[%clk 0:00:18.5]} 32. Kd3
{[%clk 0:01:03.3]} 32... Kg4 {[%clk 0:00:16.9]} 33. Ra4+ {[%clk 0:01:03.2]}
33... Kh3 {[%clk 0:00:16]} 34. Rf4 {[%clk 0:01:03.1]} 34... Kxh2 {[%clk
0:00:15.8]} 35. Rxf5 {[%clk 0:01:03.4]} 35... Kg3 {[%clk 0:00:16.2]} 36. Rh5
{[%clk 0:00:57.1]} 36... Kg4 {[%clk 0:00:15.4]} 37. Rh6 {[%clk 0:00:57.4]} 37...
Kg5 {[%clk 0:00:15.4]} 38. Rh1 {[%clk 0:00:57.6]} 38... h5 {[%clk 0:00:15.6]}
39. Kd4 {[%clk 0:00:58.2]} 39... h4 {[%clk 0:00:15.3]} 40. e4 {[%clk 0:00:58]}
40... Rd7+ {[%clk 0:00:13.8]} 41. Ke5 {[%clk 0:00:58.1]} 41... Rh7 {[%clk
0:00:12.6]} 42. Rg1+ {[%clk 0:00:57.7]} 42... Kh5 {[%clk 0:00:11.9]} 43. Kf6
{[%clk 0:00:44]} 43... h3 {[%clk 0:00:11.3]} 44. e5 {[%clk 0:00:44.2]} 44... h2
{[%clk 0:00:11.1]} 45. Rh1 {[%clk 0:00:42.4]} 45... Kg4 {[%clk 0:00:11.3]} 46.
e6 {[%clk 0:00:42.7]} 46... Rh6+ {[%clk 0:00:09.5]} 47. Kf7 {[%clk 0:00:42.3]}
47... Rh7+ {[%clk 0:00:09.2]} 48. Kg6 {[%clk 0:00:41.6]} 48... Rh3 {[%clk
0:00:04.5]} 49. e7 {[%clk 0:00:41.4]} 49... Re3 {[%clk 0:00:03.6]} 50. Kf7
{[%clk 0:00:38.9]} 50... Rf3+ {[%clk 0:00:03.7]} 51. Ke6 {[%clk 0:00:39.1]}
51... Re3+ {[%clk 0:00:03.5]} 52. Kd7 {[%clk 0:00:39.5]} 52... Rd3+ {[%clk
0:00:03.8]} 53. Ke8 {[%clk 0:00:16.2]} 53... Kg3 {[%clk 0:00:02.7]} 54. Re1
{[%clk 0:00:11]} 54... Kf2 {[%clk 0:00:01.6]} 55. Rb1 {[%clk 0:00:05.7]} 55...
Kg2 {[%clk 0:00:02.1]} 56. Kf8 {[%clk 0:00:06.2]} 56... Rf3+ {[%clk 0:00:01.7]}
57. Kg7 {[%clk 0:00:06.7]} 57... Rg3+ {[%clk 0:00:01.3]} 58. Kf7 {[%clk
0:00:07.1]} 58... Re3 {[%clk 0:00:02.2]} 59. e8=Q {[%clk 0:00:06.2]} 59... Rxe8
{[%clk 0:00:02.8]} 60. Kxe8 {[%clk 0:00:07.1]} 60... h1=Q {[%clk 0:00:02.8]} 61.
Rxh1 {[%clk 0:00:07.3]} 61... Kxh1 {[%clk 0:00:03.4]} 62. Kd7 {[%clk 0:00:08.1]}
62... Kg2 {[%clk 0:00:04.3]} 63. Kc6 {[%clk 0:00:07]} 63... Kf3 {[%clk
0:00:05.2]} 64. Kb7 {[%clk 0:00:07.5]} 64... Ke3 {[%clk 0:00:06.1]} 65. Kxa7
{[%clk 0:00:08]} 65... Kd3 {[%clk 0:00:06.7]} 66. Kxb6 {[%clk 0:00:08.6]} 66...
Kxc3 {[%clk 0:00:07.2]} 67. a4 {[%clk 0:00:09.5]} 67... Kb4 {[%clk 0:00:07.6]}
68. a5 {[%clk 0:00:10.4]} 1-0

[Event "*** Titled Tuesday Blitz"]
[Site "Chess.com"]
[Date "2020.03.03"]
[Round "1"]
[White "Bagirova"]
[Black "GameOverBro"]
[Result "0-1"]
[WhiteElo "2138"]
[BlackElo "2583"]
[TimeControl "180+1"]
[EndTime "13:08:56 PST"]
[Termination "GameOverBro won by resignation"]

1. e4 {[%clk 0:03:00.3]} 1... d6 {[%clk 0:02:57.4]} 2. d4 {[%clk 0:02:59.9]}
2... Nf6 {[%clk 0:02:57.5]} 3. Nc3 {[%clk 0:03:00.3]} 3... e5 {[%clk 0:02:55.9]}
4. dxe5 {[%clk 0:02:59.9]} 4... dxe5 {[%clk 0:02:56.8]} 5. Qxd8+ {[%clk
0:02:59.4]} 5... Kxd8 {[%clk 0:02:50.8]} 6. Bg5 {[%clk 0:02:59.2]} 6... Be6
{[%clk 0:02:49]} 7. O-O-O+ {[%clk 0:02:58.2]} 7... Kc8 {[%clk 0:02:48.5]} 8. Nf3
{[%clk 0:02:52.9]} 8... Nbd7 {[%clk 0:02:47.3]} 9. h3 {[%clk 0:02:22.9]} 9... c6
{[%clk 0:02:38.7]} 10. Bh4 {[%clk 0:02:10.6]} 10... Bb4 {[%clk 0:02:24.4]} 11.
Ng5 {[%clk 0:01:43.4]} 11... Re8 {[%clk 0:02:09.1]} 12. Nxe6 {[%clk 0:01:40.6]}
12... fxe6 {[%clk 0:02:00.6]} 13. f3 {[%clk 0:01:34]} 13... Kc7 {[%clk
0:01:42.2]} 14. g4 {[%clk 0:01:28.4]} 14... a5 {[%clk 0:01:39.8]} 15. Bg3 {[%clk
0:01:27.8]} 15... a4 {[%clk 0:01:36.7]} 16. a3 {[%clk 0:01:18.1]} 16... Bxc3
{[%clk 0:01:36]} 17. bxc3 {[%clk 0:01:18.2]} 17... Ra5 {[%clk 0:01:35.6]} 18.
Bd3 {[%clk 0:01:11.9]} 18... Rc5 {[%clk 0:01:33.4]} 19. Kb2 {[%clk 0:01:10.7]}
19... Ra8 {[%clk 0:01:21.7]} 20. Rd2 {[%clk 0:01:06.8]} 20... Nb6 {[%clk
0:01:16.9]} 21. f4 {[%clk 0:01:02.8]} 21... Nfd7 {[%clk 0:01:13.1]} 22. fxe5
{[%clk 0:01:01.1]} 22... Nxe5 {[%clk 0:01:09.8]} 23. Bxe5+ {[%clk 0:00:59.5]}
23... Rxe5 {[%clk 0:01:10.7]} 24. Rf1 {[%clk 0:01:00.1]} 24... Rd8 {[%clk
0:01:08.4]} 25. Rf7+ {[%clk 0:00:50.6]} 25... Rd7 {[%clk 0:01:05.5]} 26. Rxd7+
{[%clk 0:00:42.2]} 26... Nxd7 {[%clk 0:01:06.4]} 27. Rf2 {[%clk 0:00:42.6]}
27... g6 {[%clk 0:00:59.8]} 28. Rf7 {[%clk 0:00:42.3]} 28... h5 {[%clk
0:00:59.4]} 29. gxh5 {[%clk 0:00:26.5]} 29... gxh5 {[%clk 0:00:58.2]} 30. Rh7
{[%clk 0:00:24.4]} 30... Kd6 {[%clk 0:00:56]} 31. c4 {[%clk 0:00:24.8]} 31...
Nc5 {[%clk 0:00:55.2]} 32. Kc3 {[%clk 0:00:22]} 32... Rg5 {[%clk 0:00:49.7]} 33.
Rf7 {[%clk 0:00:15.9]} 33... b6 {[%clk 0:00:49.6]} 34. h4 {[%clk 0:00:15.5]}
34... Rg3 {[%clk 0:00:49.3]} 35. e5+ {[%clk 0:00:15.5]} 35... Kxe5 {[%clk
0:00:48.5]} 36. Rh7 {[%clk 0:00:16]} 36... Ne4+ {[%clk 0:00:47.5]} 37. Kb2
{[%clk 0:00:14]} 37... Nf6 {[%clk 0:00:48.4]} 38. Rh6 {[%clk 0:00:13.7]} 38...
Rg4 {[%clk 0:00:48]} 39. Rh8 {[%clk 0:00:13]} 39... Rxh4 {[%clk 0:00:48]} 40.
Rb8 {[%clk 0:00:13.1]} 40... Nd7 {[%clk 0:00:48.2]} 41. Rd8 {[%clk 0:00:13]}
41... Kd6 {[%clk 0:00:47.9]} 42. Bg6 {[%clk 0:00:11.4]} 42... Kc7 {[%clk
0:00:46.8]} 43. Rh8 {[%clk 0:00:11.1]} 43... Nc5 {[%clk 0:00:46.9]} 44. Rh7+
{[%clk 0:00:10.5]} 44... Kd6 {[%clk 0:00:46.5]} 45. Rxh5 {[%clk 0:00:11.1]}
45... Rxc4 {[%clk 0:00:46.8]} 46. Bd3 {[%clk 0:00:10.9]} 46... Nxd3+ {[%clk
0:00:44.6]} 47. cxd3 {[%clk 0:00:11.4]} 47... Rd4 {[%clk 0:00:44.7]} 48. Kc3
{[%clk 0:00:11.8]} 48... Rd5 {[%clk 0:00:41.9]} 49. Rh8 {[%clk 0:00:11.9]} 49...
Kc5 {[%clk 0:00:41.5]} 50. Rb8 {[%clk 0:00:12.1]} 50... b5 {[%clk 0:00:41.4]}
51. Re8 {[%clk 0:00:12.2]} 51... e5 {[%clk 0:00:41.4]} 52. Re6 {[%clk
0:00:11.9]} 52... Kb6 {[%clk 0:00:40.7]} 53. Rh6 {[%clk 0:00:11.5]} 53... Rc5+
{[%clk 0:00:40.7]} 54. Kb4 {[%clk 0:00:11.5]} 54... Rc1 {[%clk 0:00:37.5]} 55.
Re6 {[%clk 0:00:11.4]} 55... Rb1+ {[%clk 0:00:37.5]} 56. Kc3 {[%clk 0:00:12]}
56... Rb3+ {[%clk 0:00:37.8]} 57. Kc2 {[%clk 0:00:12.6]} 57... Rxa3 {[%clk
0:00:37.7]} 58. Rxe5 {[%clk 0:00:13.3]} 58... b4 {[%clk 0:00:37.8]} 59. Kb2
{[%clk 0:00:13.1]} 59... Rb3+ {[%clk 0:00:36.9]} 60. Kc2 {[%clk 0:00:13]} 60...
Rc3+ {[%clk 0:00:37.1]} 61. Kd2 {[%clk 0:00:12.9]} 61... a3 {[%clk 0:00:36.9]}
62. Rh5 {[%clk 0:00:11.9]} 62... a2 {[%clk 0:00:36.8]} 63. Rh1 {[%clk
0:00:12.5]} 63... Ra3 {[%clk 0:00:36.4]} 64. Ra1 {[%clk 0:00:12.6]} 64... Kb5
{[%clk 0:00:35.7]} 65. Kc2 {[%clk 0:00:12.8]} 65... c5 {[%clk 0:00:35.8]} 66. d4
{[%clk 0:00:12.6]} 66... cxd4 {[%clk 0:00:35.6]} 67. Kb2 {[%clk 0:00:13.1]}
67... d3 {[%clk 0:00:34.9]} 68. Kc1 {[%clk 0:00:13.2]} 68... Kc4 {[%clk
0:00:35]} 69. Kd2 {[%clk 0:00:13.5]} 69... Kb3 {[%clk 0:00:33.3]} 70. Kxd3
{[%clk 0:00:11.5]} 70... Kb2+ {[%clk 0:00:31.9]} 0-1

[Event "*** Titled Tuesday Blitz"]
[Site "Chess.com"]
[Date "2020.03.03"]
[Round "1"]
[White "HouseOfDurin"]
[Black "nocnypako"]
[Result "0-1"]
[WhiteElo "2084"]
[BlackElo "2571"]
[TimeControl "180+1"]
[EndTime "13:08:57 PST"]
[Termination "nocnypako won by resignation"]

1. d4 {[%clk 0:03:00.4]} 1... Nf6 {[%clk 0:02:56.1]} 2. Bg5 {[%clk 0:03:00.7]}
2... g6 {[%clk 0:02:54.4]} 3. Bxf6 {[%clk 0:03:00.8]} 3... exf6 {[%clk
0:02:55.3]} 4. c4 {[%clk 0:03:01.3]} 4... Bg7 {[%clk 0:02:55.9]} 5. Nc3 {[%clk
0:03:01.9]} 5... O-O {[%clk 0:02:56.4]} 6. g3 {[%clk 0:03:02.4]} 6... c5 {[%clk
0:02:57]} 7. e3 {[%clk 0:03:01.1]} 7... Nc6 {[%clk 0:02:57.3]} 8. Nge2 {[%clk
0:02:57.1]} 8... cxd4 {[%clk 0:02:52.8]} 9. exd4 {[%clk 0:02:58]} 9... f5 {[%clk
0:02:50.4]} 10. Bg2 {[%clk 0:02:57.6]} 10... Qb6 {[%clk 0:02:44.1]} 11. Bxc6
{[%clk 0:01:31.6]} 11... dxc6 {[%clk 0:02:16.5]} 12. Qb3 {[%clk 0:01:21.2]}
12... Bxd4 {[%clk 0:02:14.2]} 13. Qxb6 {[%clk 0:01:10.2]} 13... Bxc3+ {[%clk
0:02:00.4]} 14. Nxc3 {[%clk 0:01:07.1]} 14... axb6 {[%clk 0:02:01.1]} 15. O-O-O
{[%clk 0:01:05.8]} 15... Be6 {[%clk 0:02:00.3]} 16. b3 {[%clk 0:01:03.7]} 16...
Rfd8 {[%clk 0:01:40]} 17. f4 {[%clk 0:01:03.4]} 17... Kf8 {[%clk 0:01:38.3]} 18.
h4 {[%clk 0:00:55]} 18... Ke7 {[%clk 0:01:37.4]} 19. Rxd8 {[%clk 0:00:51.7]}
19... Rxd8 {[%clk 0:01:35.8]} 20. Rd1 {[%clk 0:00:52.6]} 20... Rg8 {[%clk
0:01:19.2]} 21. Na4 {[%clk 0:00:21.4]} 21... b5 {[%clk 0:01:17.2]} 22. cxb5
{[%clk 0:00:19.7]} 22... cxb5 {[%clk 0:01:18.1]} 23. Nc3 {[%clk 0:00:16.5]}
23... b4 {[%clk 0:01:13.6]} 24. Nd5+ {[%clk 0:00:15.4]} 24... Bxd5 {[%clk
0:01:11.8]} 25. Rxd5 {[%clk 0:00:16.3]} 25... Rc8+ {[%clk 0:01:11.2]} 26. Kb2
{[%clk 0:00:16.2]} 26... Rc3 {[%clk 0:01:06.6]} 27. Rb5 {[%clk 0:00:16.6]} 27...
Rxg3 {[%clk 0:01:06.5]} 28. Rxb7+ {[%clk 0:00:16.7]} 28... Kd6 {[%clk
0:00:54.9]} 29. Rxb4 {[%clk 0:00:17.6]} 29... Rg4 {[%clk 0:00:54.8]} 30. a4
{[%clk 0:00:17.5]} 30... Rxh4 {[%clk 0:00:49.6]} 31. a5 {[%clk 0:00:17.8]} 31...
Rh2+ {[%clk 0:00:49.4]} 32. Kc3 {[%clk 0:00:16.7]} 32... Ra2 {[%clk 0:00:47.8]}
33. Rb7 {[%clk 0:00:14.7]} 33... Rxa5 {[%clk 0:00:43.5]} 34. Rxf7 {[%clk
0:00:14]} 34... Kd5 {[%clk 0:00:24.1]} 35. Rxh7 {[%clk 0:00:10]} 35... Ke4
{[%clk 0:00:23.4]} 36. Rh4 {[%clk 0:00:08.9]} 36... Kf3 {[%clk 0:00:23.4]} 37.
Kb4 {[%clk 0:00:06.7]} 37... Ra8 {[%clk 0:00:11.8]} 38. Rh1 {[%clk 0:00:05.2]}
38... Kxf4 {[%clk 0:00:11.7]} 39. Rf1+ {[%clk 0:00:04.3]} 39... Ke5 {[%clk
0:00:11.6]} 40. Kc5 {[%clk 0:00:04.5]} 40... Rc8+ {[%clk 0:00:08.2]} 41. Kb5
{[%clk 0:00:04.4]} 41... Rb8+ {[%clk 0:00:09.1]} 42. Kc4 {[%clk 0:00:04.2]}
42... g5 {[%clk 0:00:09.5]} 43. b4 {[%clk 0:00:04.5]} 43... g4 {[%clk 0:00:09]}
44. Kc5 {[%clk 0:00:04.2]} 44... g3 {[%clk 0:00:09]} 45. Re1+ {[%clk 0:00:04.5]}
45... Kf4 {[%clk 0:00:08.7]} 46. Rf1+ {[%clk 0:00:04.8]} 46... Kg4 {[%clk
0:00:08.9]} 47. b5 {[%clk 0:00:05.3]} 47... f4 {[%clk 0:00:09.1]} 48. Kc6 {[%clk
0:00:05.2]} 48... f3 {[%clk 0:00:09.2]} 49. b6 {[%clk 0:00:04.9]} 49... g2
{[%clk 0:00:09.2]} 50. Ra1 {[%clk 0:00:05.8]} 50... f2 {[%clk 0:00:08.2]} 51.
Ra4+ {[%clk 0:00:05.9]} 51... Kg3 {[%clk 0:00:07.8]} 52. Kc7 {[%clk 0:00:06.8]}
52... Rxb6 {[%clk 0:00:07.4]} 53. Kxb6 {[%clk 0:00:06.5]} 53... f1=Q {[%clk
0:00:08.2]} 54. Ra3+ {[%clk 0:00:07.4]} 54... Kh2 {[%clk 0:00:08.4]} 55. Rc3
{[%clk 0:00:07.3]} 55... g1=Q+ {[%clk 0:00:07.7]} 56. Kc6 {[%clk 0:00:07.4]}
56... Qf6+ {[%clk 0:00:06.9]} 57. Kb5 {[%clk 0:00:07]} 57... Qxc3 {[%clk
0:00:07.5]} 58. Ka4 {[%clk 0:00:06.8]} 58... Qga1+ {[%clk 0:00:07.2]} 59. Kb5
{[%clk 0:00:06.8]} 59... Qab2+ {[%clk 0:00:08.1]} 0-1

[Event "*** Titled Tuesday Blitz"]
[Site "Chess.com"]
[Date "2020.03.03"]
[Round "1"]
[White "Keithonsky"]
[Black "Vaathi_Coming"]
[Result "0-1"]
[WhiteElo "2435"]
[BlackElo "2825"]
[TimeControl "180+1"]
[EndTime "13:09:44 PST"]
[Termination "Vaathi_Coming won by resignation"]

1. d4 {[%clk 0:03:00.4]} 1... Nf6 {[%clk 0:02:59.3]} 2. c4 {[%clk 0:02:57.5]}
2... Nc6 {[%clk 0:02:58.9]} 3. Nf3 {[%clk 0:02:56.1]} 3... e6 {[%clk 0:02:59.1]}
4. g3 {[%clk 0:02:55.9]} 4... d5 {[%clk 0:02:58.5]} 5. Bg2 {[%clk 0:02:55.8]}
5... dxc4 {[%clk 0:02:58.8]} 6. O-O {[%clk 0:02:56.2]} 6... Rb8 {[%clk 0:02:58]}
7. e3 {[%clk 0:02:55.5]} 7... b5 {[%clk 0:02:56.2]} 8. Qe2 {[%clk 0:02:55.4]}
8... Bb7 {[%clk 0:02:55.8]} 9. Rd1 {[%clk 0:02:55.9]} 9... Be7 {[%clk
0:02:53.8]} 10. e4 {[%clk 0:02:56.1]} 10... O-O {[%clk 0:02:53]} 11. Nc3 {[%clk
0:02:56]} 11... Nb4 {[%clk 0:02:40.2]} 12. Ne1 {[%clk 0:02:55.4]} 12... a6
{[%clk 0:02:31.4]} 13. a4 {[%clk 0:02:54.5]} 13... Qd7 {[%clk 0:02:26.3]} 14.
axb5 {[%clk 0:02:42.7]} 14... axb5 {[%clk 0:02:27.2]} 15. Bf4 {[%clk 0:02:41.6]}
15... Ra8 {[%clk 0:02:26.5]} 16. g4 {[%clk 0:02:40.7]} 16... Rxa1 {[%clk
0:02:20.8]} 17. Rxa1 {[%clk 0:02:41.4]} 17... Qxd4 {[%clk 0:02:21.4]} 18. g5
{[%clk 0:02:40.5]} 18... Ne8 {[%clk 0:02:07.2]} 19. Nxb5 {[%clk 0:02:38]} 19...
Qc5 {[%clk 0:02:05]} 20. Nc3 {[%clk 0:02:33.4]} 20... Bxg5 {[%clk 0:02:04.1]}
21. Bxg5 {[%clk 0:02:25.7]} 21... Qxg5 {[%clk 0:02:05]} 22. Qxc4 {[%clk
0:02:26.6]} 22... Nc6 {[%clk 0:01:59.9]} 23. Qb5 {[%clk 0:02:24.4]} 23... Qxb5
{[%clk 0:01:58.5]} 24. Nxb5 {[%clk 0:02:25.3]} 24... Nd6 {[%clk 0:01:51.1]} 25.
Nxc7 {[%clk 0:02:24.7]} 25... Rc8 {[%clk 0:01:49.8]} 26. e5 {[%clk 0:02:24.8]}
26... Nxe5 {[%clk 0:01:45.3]} 27. Bxb7 {[%clk 0:02:24.4]} 27... Nxb7 {[%clk
0:01:46.2]} 28. Ra7 {[%clk 0:02:21.8]} 28... Nd6 {[%clk 0:01:42.3]} 29. b4
{[%clk 0:02:18.1]} 29... g5 {[%clk 0:01:41.1]} 30. b5 {[%clk 0:02:18.2]} 30...
Nec4 {[%clk 0:01:41.2]} 31. Nd3 {[%clk 0:02:16.3]} 31... Nf5 {[%clk 0:01:29.8]}
32. Nc5 {[%clk 0:02:14.8]} 32... Rd8 {[%clk 0:01:25.2]} 33. Ra8 {[%clk
0:02:13.8]} 33... Rxa8 {[%clk 0:01:24.7]} 34. Nxa8 {[%clk 0:02:14.7]} 34... Nfd6
{[%clk 0:01:24.6]} 35. b6 {[%clk 0:02:14.6]} 35... Na5 {[%clk 0:01:25.2]} 36.
Nc7 {[%clk 0:02:09.5]} 36... Kf8 {[%clk 0:01:24.5]} 37. N5xe6+ {[%clk
0:02:03.5]} 37... fxe6 {[%clk 0:01:24.2]} 38. Nxe6+ {[%clk 0:02:04.4]} 38... Ke7
{[%clk 0:01:22.6]} 39. Nxg5 {[%clk 0:02:05.3]} 39... h6 {[%clk 0:01:22.8]} 40.
Nf3 {[%clk 0:02:02.2]} 40... Nac4 {[%clk 0:01:22]} 41. Nd4 {[%clk 0:02:01.5]}
41... Nxb6 {[%clk 0:01:21]} 42. Kg2 {[%clk 0:02:00.2]} 42... Kf6 {[%clk
0:01:21.2]} 43. Kh3 {[%clk 0:02:00.6]} 43... Nf5 {[%clk 0:01:19.1]} 44. Ne2
{[%clk 0:02:00.7]} 44... Nd5 {[%clk 0:01:18.8]} 45. Kg2 {[%clk 0:01:58.7]} 45...
Kg5 {[%clk 0:01:17.2]} 46. Kf3 {[%clk 0:01:55.5]} 46... Nf6 {[%clk 0:01:17.2]}
47. Kg2 {[%clk 0:01:52]} 47... Ne4 {[%clk 0:01:14.4]} 48. f3 {[%clk 0:01:51.3]}
48... Nh4+ {[%clk 0:01:14.6]} 49. Kf1 {[%clk 0:01:47.8]} 49... Nxf3 {[%clk
0:01:15.5]} 50. Kg2 {[%clk 0:01:47.1]} 50... Nh4+ {[%clk 0:01:13.8]} 51. Kf1
{[%clk 0:01:36.6]} 51... Nf5 {[%clk 0:01:13.9]} 52. Kg2 {[%clk 0:01:35.4]} 52...
Kg4 {[%clk 0:01:12.5]} 53. h3+ {[%clk 0:01:34.9]} 53... Kg5 {[%clk 0:01:06.8]}
54. Kf3 {[%clk 0:01:33.4]} 54... Nd2+ {[%clk 0:01:05.3]} 55. Kg2 {[%clk
0:01:30.3]} 55... Nc4 {[%clk 0:01:04.7]} 56. Nc3 {[%clk 0:01:25.6]} 56... Ncd6
{[%clk 0:01:00.3]} 57. Nd5 {[%clk 0:01:21.8]} 57... Ne4 {[%clk 0:00:58.2]} 58.
Kf3 {[%clk 0:01:19.6]} 58... Nf6 {[%clk 0:00:57.2]} 59. Nc3 {[%clk 0:01:14.6]}
59... Kh4 {[%clk 0:00:47.6]} 60. Kg2 {[%clk 0:01:13.9]} 60... Ne3+ {[%clk
0:00:43.5]} 61. Kh2 {[%clk 0:01:10.1]} 61... Nfd5 {[%clk 0:00:43.2]} 62. Ne2
{[%clk 0:01:06.9]} 62... Nf5 {[%clk 0:00:31.4]} 63. Kg2 {[%clk 0:01:02.4]} 63...
Nde3+ {[%clk 0:00:30.7]} 64. Kh2 {[%clk 0:00:59.4]} 64... Kg5 {[%clk 0:00:20.7]}
65. Kg1 {[%clk 0:00:55.3]} 65... Kh5 {[%clk 0:00:18.7]} 66. Kh2 {[%clk
0:00:55.7]} 66... Kh4 {[%clk 0:00:19]} 67. Nf4 {[%clk 0:00:53.8]} 67... Nd4
{[%clk 0:00:17]} 68. Ng6+ {[%clk 0:00:50.1]} 68... Kg5 {[%clk 0:00:17]} 69. Ne5
{[%clk 0:00:50.4]} 69... Kf4 {[%clk 0:00:15.3]} 70. Ng6+ {[%clk 0:00:49.9]}
70... Ke4 {[%clk 0:00:13.2]} 71. Kg3 {[%clk 0:00:47.9]} 71... Ndf5+ {[%clk
0:00:13.2]} 72. Kf2 {[%clk 0:00:45.6]} 72... Nd5 {[%clk 0:00:11.9]} 73. Kg2
{[%clk 0:00:42.6]} 73... Nf4+ {[%clk 0:00:11.4]} 74. Nxf4 {[%clk 0:00:41.9]}
74... Kxf4 {[%clk 0:00:12.3]} 75. Kf2 {[%clk 0:00:42.8]} 75... h5 {[%clk
0:00:12.2]} 76. Kg2 {[%clk 0:00:43.7]} 76... Ke3 {[%clk 0:00:11.7]} 77. h4
{[%clk 0:00:43.2]} 77... Nxh4+ {[%clk 0:00:11.1]} 78. Kh3 {[%clk 0:00:44.1]}
78... Nf5 {[%clk 0:00:11.7]} 79. Kh2 {[%clk 0:00:44.2]} 79... Kf4 {[%clk
0:00:12.4]} 80. Kh3 {[%clk 0:00:45.1]} 80... h4 {[%clk 0:00:13]} 81. Kg2 {[%clk
0:00:45.5]} 81... Kg4 {[%clk 0:00:13.7]} 82. Kh2 {[%clk 0:00:46.4]} 82... h3
{[%clk 0:00:14.3]} 83. Kg1 {[%clk 0:00:46.5]} 83... Kg3 {[%clk 0:00:14.6]} 84.
Kh1 {[%clk 0:00:47.4]} 84... Ne3 {[%clk 0:00:13.4]} 85. Kg1 {[%clk 0:00:48.3]}
85... Ng4 {[%clk 0:00:13.3]} 86. Kh1 {[%clk 0:00:49.2]} 86... Nf2+ {[%clk
0:00:13.4]} 87. Kg1 {[%clk 0:00:49.7]} 87... h2+ {[%clk 0:00:13.7]} 0-1